[Event "*** Titled Tuesday Blitz"]
[Site "Chess.com"]
[Date "2020.05.19"]
[Round "7"]
[White "Anna_Ko_Rnd"]
[Black "CzechmVIII"]
[Result "0-1"]
[WhiteElo "1648"]
[BlackElo "2202"]
[TimeControl "180+1"]
[EndTime "13:20:45 PDT"]
[Termination "CzechmVIII won by resignation"]

1. e4 {[%clk 0:03:00.9]} 1... c5 {[%clk 0:02:59.9]} 2. Nf3 {[%clk 0:03:00.3]}
2... d6 {[%clk 0:02:59.6]} 3. d4 {[%clk 0:02:59.4]} 3... cxd4 {[%clk 0:02:59.6]}
4. Qxd4 {[%clk 0:02:59.6]} 4... Nc6 {[%clk 0:02:58.9]} 5. Bb5 {[%clk 0:02:59.5]}
5... Bd7 {[%clk 0:02:59.2]} 6. Bxc6 {[%clk 0:02:59.3]} 6... Bxc6 {[%clk
0:02:59.9]} 7. c4 {[%clk 0:02:59.6]} 7... f5 {[%clk 0:03:00.1]} 8. exf5 {[%clk
0:02:56.9]} 8... Qa5+ {[%clk 0:02:59.1]} 9. Nbd2 {[%clk 0:02:41]} 9... Qxf5
{[%clk 0:02:58.7]} 10. O-O {[%clk 0:02:39.4]} 10... e5 {[%clk 0:02:55.4]} 11.
Qe3 {[%clk 0:02:36.8]} 11... Nf6 {[%clk 0:02:51.4]} 12. Nd4 {[%clk 0:02:23.8]}
12... Qg6 {[%clk 0:02:10.9]} 13. Nxc6 {[%clk 0:02:23.3]} 13... bxc6 {[%clk
0:02:11.8]} 14. Nf3 {[%clk 0:02:17.6]} 14... Be7 {[%clk 0:02:08.4]} 15. c5
{[%clk 0:02:15.2]} 15... Nd5 {[%clk 0:01:50.8]} 16. Qe2 {[%clk 0:02:06.4]} 16...
O-O {[%clk 0:01:44.4]} 17. cxd6 {[%clk 0:02:03.2]} 17... Bxd6 {[%clk 0:01:44.7]}
18. Nxe5 {[%clk 0:01:50.4]} 18... Qe6 {[%clk 0:01:19.8]} 19. f4 {[%clk
0:01:45.3]} 19... Rae8 {[%clk 0:01:16.4]} 20. Qc4 {[%clk 0:01:29.4]} 20... Bxe5
{[%clk 0:01:10.8]} 21. fxe5 {[%clk 0:01:25.2]} 21... Rxf1+ {[%clk 0:01:06.5]}
22. Qxf1 {[%clk 0:01:21.6]} 22... Qxe5 {[%clk 0:01:05.3]} 23. Rb1 {[%clk
0:01:14.7]} 23... Rf8 {[%clk 0:01:01.5]} 24. Qd1 {[%clk 0:01:12.5]} 24... Qe4
{[%clk 0:00:51]} 25. Bg5 {[%clk 0:01:06]} 25... Ne3 {[%clk 0:00:36.8]} 26. Bxe3
{[%clk 0:01:04.8]} 26... Qxe3+ {[%clk 0:00:37]} 27. Kh1 {[%clk 0:01:03.1]} 27...
Qe4 {[%clk 0:00:32]} 28. Rc1 {[%clk 0:00:56.1]} 28... h6 {[%clk 0:00:32]} 29. h3
{[%clk 0:00:50.1]} 29... Rf2 {[%clk 0:00:30.3]} 30. Qd8+ {[%clk 0:00:43.6]}
30... Kh7 {[%clk 0:00:30.2]} 31. Rg1 {[%clk 0:00:43.3]} 31... Rxb2 {[%clk
0:00:28.8]} 32. a3 {[%clk 0:00:39.1]} 32... c5 {[%clk 0:00:21.7]} 33. Qc7 {[%clk
0:00:32.2]} 33... c4 {[%clk 0:00:19.4]} 34. Qxa7 {[%clk 0:00:32.2]} 34... Rb1
{[%clk 0:00:19.7]} 35. Qc5 {[%clk 0:00:22.2]} 35... Rxg1+ {[%clk 0:00:18.3]} 36.
Kxg1 {[%clk 0:00:21.2]} 36... Qd3 {[%clk 0:00:17.8]} 37. a4 {[%clk 0:00:20.1]}
37... c3 {[%clk 0:00:18.1]} 38. a5 {[%clk 0:00:17.9]} 38... c2 {[%clk
0:00:18.3]} 39. a6 {[%clk 0:00:18.1]} 39... Qd1+ {[%clk 0:00:18.5]} 40. Kh2
{[%clk 0:00:18.2]} 40... c1=Q {[%clk 0:00:18.3]} 41. Qf5+ {[%clk 0:00:17.4]}
41... Kg8 {[%clk 0:00:17.9]} 42. Qe6+ {[%clk 0:00:17.4]} 42... Kf8 {[%clk
0:00:17.4]} 43. Qf5+ {[%clk 0:00:14.4]} 43... Ke8 {[%clk 0:00:17.7]} 44. Qg6+
{[%clk 0:00:12.6]} 44... Kd8 {[%clk 0:00:16.3]} 45. Qxg7 {[%clk 0:00:11.2]}
45... Qc7+ {[%clk 0:00:14.9]} 46. Qxc7+ {[%clk 0:00:10.4]} 46... Kxc7 {[%clk
0:00:15.6]} 47. a7 {[%clk 0:00:11]} 47... Kb7 {[%clk 0:00:15.6]} 0-1

[Event "*** Titled Tuesday Blitz"]
[Site "Chess.com"]
[Date "2020.05.19"]
[Round "7"]
[White "Filip_Covic"]
[Black "m-garcett"]
[Result "1-0"]
[WhiteElo "2386"]
[BlackElo "2098"]
[TimeControl "180+1"]
[EndTime "13:20:46 PDT"]
[Termination "Filip_Covic won on time"]

1. d4 {[%clk 0:03:00.9]} 1... Nf6 {[%clk 0:02:59.2]} 2. c4 {[%clk 0:03:01.2]}
2... g6 {[%clk 0:02:59.2]} 3. Nc3 {[%clk 0:03:01.5]} 3... Bg7 {[%clk 0:02:59.6]}
4. e4 {[%clk 0:03:01.6]} 4... d6 {[%clk 0:02:59.9]} 5. Nge2 {[%clk 0:03:01.9]}
5... O-O {[%clk 0:02:58.5]} 6. Ng3 {[%clk 0:03:02.2]} 6... Nc6 {[%clk
0:02:51.8]} 7. Be2 {[%clk 0:03:00.2]} 7... a6 {[%clk 0:02:50.8]} 8. d5 {[%clk
0:02:57.4]} 8... Ne5 {[%clk 0:02:45.6]} 9. h4 {[%clk 0:02:54.4]} 9... h5 {[%clk
0:02:43.5]} 10. Bg5 {[%clk 0:02:52.9]} 10... c6 {[%clk 0:02:29.8]} 11. Qd2
{[%clk 0:02:47]} 11... cxd5 {[%clk 0:02:29.6]} 12. Nxd5 {[%clk 0:02:23]} 12...
Nxd5 {[%clk 0:02:12.8]} 13. cxd5 {[%clk 0:02:23.9]} 13... Bd7 {[%clk 0:02:01.7]}
14. O-O {[%clk 0:01:48.5]} 14... Re8 {[%clk 0:01:52.6]} 15. Rac1 {[%clk
0:01:45.4]} 15... Bg4 {[%clk 0:01:14.7]} 16. Bxg4 {[%clk 0:01:25]} 16... Nxg4
{[%clk 0:01:12.9]} 17. Qb4 {[%clk 0:01:20.4]} 17... b5 {[%clk 0:00:55.7]} 18. b3
{[%clk 0:01:10.2]} 18... Rc8 {[%clk 0:00:49.8]} 19. f3 {[%clk 0:00:30.8]} 19...
Qb6+ {[%clk 0:00:46.5]} 20. Kh1 {[%clk 0:00:25.2]} 20... Rxc1 {[%clk 0:00:37.2]}
21. Rxc1 {[%clk 0:00:22.6]} 21... Nf2+ {[%clk 0:00:37.1]} 22. Kh2 {[%clk
0:00:18.1]} 22... Nd3 {[%clk 0:00:33.4]} 23. Qd2 {[%clk 0:00:18]} 23... Nxc1
{[%clk 0:00:33]} 24. Qxc1 {[%clk 0:00:18.9]} 24... Be5 {[%clk 0:00:33]} 25. Bf4
{[%clk 0:00:14.5]} 25... Bxf4 {[%clk 0:00:28.2]} 26. Qxf4 {[%clk 0:00:15.4]}
26... Rc8 {[%clk 0:00:28.1]} 27. Qg5 {[%clk 0:00:13.9]} 27... Kh7 {[%clk
0:00:13.1]} 28. Nf5 {[%clk 0:00:09.8]} 28... gxf5 {[%clk 0:00:12.1]} 29. Qxf5+
{[%clk 0:00:09.9]} 29... Kg7 {[%clk 0:00:11.7]} 30. Qxc8 {[%clk 0:00:10.1]}
30... Qd4 {[%clk 0:00:05.9]} 31. Qf5 {[%clk 0:00:08.6]} 31... Qe5+ {[%clk
0:00:05.8]} 32. Qxe5+ {[%clk 0:00:08.6]} 32... dxe5 {[%clk 0:00:06]} 33. g3
{[%clk 0:00:08.6]} 33... f5 {[%clk 0:00:04.7]} 34. exf5 {[%clk 0:00:07.5]} 34...
Kf6 {[%clk 0:00:04.3]} 35. g4 {[%clk 0:00:08]} 35... hxg4 {[%clk 0:00:04.3]} 36.
fxg4 {[%clk 0:00:08.9]} 36... e4 {[%clk 0:00:04.7]} 37. Kg3 {[%clk 0:00:09.3]}
37... Ke5 {[%clk 0:00:05.1]} 38. h5 {[%clk 0:00:09.2]} 38... Kd4 {[%clk
0:00:03.9]} 39. Kf2 {[%clk 0:00:09.4]} 39... Kd3 {[%clk 0:00:03.4]} 40. Ke1
{[%clk 0:00:09.7]} 1-0

[Event "*** Titled Tuesday Blitz"]
[Site "Chess.com"]
[Date "2020.05.19"]
[Round "7"]
[White "Chuchofrio1"]
[Black "Vandros57"]
[Result "0-1"]
[WhiteElo "2238"]
[BlackElo "2106"]
[TimeControl "180+1"]
[EndTime "13:20:47 PDT"]
[Termination "Vandros57 won by resignation"]

1. d4 {[%clk 0:03:00.9]} 1... d5 {[%clk 0:02:58.9]} 2. c4 {[%clk 0:03:00.7]}
2... e6 {[%clk 0:02:58.8]} 3. Nc3 {[%clk 0:02:59.3]} 3... Nf6 {[%clk 0:02:58.6]}
4. cxd5 {[%clk 0:02:59.7]} 4... exd5 {[%clk 0:02:57.8]} 5. Bg5 {[%clk
0:02:59.6]} 5... c6 {[%clk 0:02:57.3]} 6. e3 {[%clk 0:02:59.9]} 6... Be7 {[%clk
0:02:56.9]} 7. Bd3 {[%clk 0:02:59.6]} 7... O-O {[%clk 0:02:56.3]} 8. Qc2 {[%clk
0:02:58.7]} 8... Nbd7 {[%clk 0:02:53.2]} 9. Nf3 {[%clk 0:02:58.4]} 9... Re8
{[%clk 0:02:50.6]} 10. O-O {[%clk 0:02:58.5]} 10... Nf8 {[%clk 0:02:48.8]} 11.
h3 {[%clk 0:02:58.9]} 11... Ne4 {[%clk 0:02:28.9]} 12. Bf4 {[%clk 0:02:54.5]}
12... Nxc3 {[%clk 0:02:20.2]} 13. bxc3 {[%clk 0:02:50.1]} 13... Bd6 {[%clk
0:02:18.5]} 14. Bxd6 {[%clk 0:02:47.5]} 14... Qxd6 {[%clk 0:02:17.8]} 15. c4
{[%clk 0:02:46.9]} 15... dxc4 {[%clk 0:02:10.7]} 16. Bxc4 {[%clk 0:02:45.6]}
16... Be6 {[%clk 0:02:09.4]} 17. Rab1 {[%clk 0:02:39.6]} 17... Rab8 {[%clk
0:02:04.7]} 18. Ne5 {[%clk 0:02:34.9]} 18... Bxc4 {[%clk 0:02:00.6]} 19. Qxc4
{[%clk 0:02:34.5]} 19... Qe6 {[%clk 0:01:54.3]} 20. Rb2 {[%clk 0:02:29]} 20...
Qxc4 {[%clk 0:01:52.3]} 21. Nxc4 {[%clk 0:02:29.9]} 21... b6 {[%clk 0:01:47.5]}
22. Rc1 {[%clk 0:02:19.5]} 22... Re6 {[%clk 0:01:45]} 23. Rbc2 {[%clk
0:02:14.6]} 23... f6 {[%clk 0:01:39.7]} 24. Nd2 {[%clk 0:02:11.9]} 24... c5
{[%clk 0:01:31.5]} 25. dxc5 {[%clk 0:02:09.7]} 25... bxc5 {[%clk 0:01:31.4]} 26.
Rxc5 {[%clk 0:02:08.7]} 26... Ra6 {[%clk 0:01:30.1]} 27. R1c2 {[%clk 0:02:03.2]}
27... h6 {[%clk 0:01:25]} 28. Ne4 {[%clk 0:02:01.7]} 28... Rab6 {[%clk
0:01:17.7]} 29. Ng3 {[%clk 0:01:55.7]} 29... Kh7 {[%clk 0:01:14.7]} 30. Nf5
{[%clk 0:01:54.2]} 30... Kg6 {[%clk 0:01:12.2]} 31. Ne7+ {[%clk 0:01:52.3]}
31... Kf7 {[%clk 0:01:10.9]} 32. Nd5 {[%clk 0:01:51.6]} 32... Rb1+ {[%clk
0:01:08]} 33. Kh2 {[%clk 0:01:51.2]} 33... R1b2 {[%clk 0:01:07.7]} 34. Rc7+
{[%clk 0:01:40.5]} 34... Kg8 {[%clk 0:01:04.2]} 35. Ne7+ {[%clk 0:01:34.4]}
35... Kh7 {[%clk 0:01:02]} 36. Kg3 {[%clk 0:01:23.3]} 36... Ne6 {[%clk
0:00:58.7]} 37. Rxb2 {[%clk 0:01:18.3]} 37... Rxb2 {[%clk 0:00:56.7]} 38. Rxa7
{[%clk 0:01:18.3]} 38... Ng5 {[%clk 0:00:52]} 39. f3 {[%clk 0:01:14.3]} 39... h5
{[%clk 0:00:50.4]} 40. Nf5 {[%clk 0:01:13]} 40... Kg6 {[%clk 0:00:48.8]} 41.
Nxg7 {[%clk 0:01:11.2]} 41... h4+ {[%clk 0:00:47.9]} 42. Kf4 {[%clk 0:01:07.6]}
42... Rxg2 {[%clk 0:00:45.9]} 43. Ne8 {[%clk 0:01:06.3]} 43... Nxh3+ {[%clk
0:00:45.1]} 44. Ke4 {[%clk 0:01:02.3]} 44... Nf2+ {[%clk 0:00:44.4]} 45. Kd4
{[%clk 0:00:58.5]} 45... h3 {[%clk 0:00:43.5]} 46. Ra6 {[%clk 0:00:52.2]} 46...
h2 {[%clk 0:00:39.5]} 47. Rxf6+ {[%clk 0:00:50.4]} 47... Kh7 {[%clk 0:00:38.9]}
48. Rf7+ {[%clk 0:00:49.5]} 48... Kh8 {[%clk 0:00:31.3]} 49. Nf6 {[%clk
0:00:44.4]} 49... h1=Q {[%clk 0:00:29.3]} 50. Rh7+ {[%clk 0:00:39.9]} 50... Qxh7
{[%clk 0:00:27.8]} 51. Nxh7 {[%clk 0:00:40.8]} 51... Kxh7 {[%clk 0:00:27.9]} 52.
f4 {[%clk 0:00:40.5]} 52... Kg6 {[%clk 0:00:27.7]} 53. e4 {[%clk 0:00:40.7]}
53... Kf6 {[%clk 0:00:27.6]} 54. a4 {[%clk 0:00:39.8]} 54... Ke6 {[%clk
0:00:27.4]} 55. f5+ {[%clk 0:00:39.7]} 55... Kf6 {[%clk 0:00:25.8]} 56. Kd5
{[%clk 0:00:40]} 56... Rg4 {[%clk 0:00:25.1]} 57. e5+ {[%clk 0:00:39.5]} 57...
Kxf5 {[%clk 0:00:25.2]} 58. e6 {[%clk 0:00:39.1]} 58... Rxa4 {[%clk 0:00:24.6]}
59. e7 {[%clk 0:00:38.8]} 59... Ra8 {[%clk 0:00:24.5]} 60. Kd6 {[%clk
0:00:38.8]} 60... Kf6 {[%clk 0:00:24.7]} 61. Kd7 {[%clk 0:00:39]} 61... Kf7
{[%clk 0:00:25]} 0-1

[Event "*** Titled Tuesday Blitz"]
[Site "Chess.com"]
[Date "2020.05.19"]
[Round "7"]
[White "Zhuu96"]
[Black "1stSecond"]
[Result "0-1"]
[WhiteElo "2850"]
[BlackElo "2744"]
[TimeControl "180+1"]
[EndTime "13:20:48 PDT"]
[Termination "1stSecond won by resignation"]

1. d4 {[%clk 0:02:58.5]} 1... Nf6 {[%clk 0:02:59.6]} 2. c4 {[%clk 0:02:58.1]}
2... c5 {[%clk 0:02:59.1]} 3. Nf3 {[%clk 0:02:56.5]} 3... e6 {[%clk 0:02:53.6]}
4. Nc3 {[%clk 0:02:52.8]} 4... cxd4 {[%clk 0:02:45.2]} 5. Nxd4 {[%clk
0:02:53.7]} 5... Nc6 {[%clk 0:02:42.7]} 6. Ndb5 {[%clk 0:02:46.1]} 6... d6
{[%clk 0:02:39.5]} 7. Bf4 {[%clk 0:02:41.3]} 7... e5 {[%clk 0:02:24.2]} 8. Bg5
{[%clk 0:02:37]} 8... a6 {[%clk 0:02:24.2]} 9. Na3 {[%clk 0:02:36.2]} 9... Be6
{[%clk 0:02:17.8]} 10. g3 {[%clk 0:02:25.7]} 10... Qb6 {[%clk 0:02:11.2]} 11.
Qb3 {[%clk 0:01:23.9]} 11... Qxb3 {[%clk 0:02:04.1]} 12. axb3 {[%clk 0:01:23.8]}
12... Nd7 {[%clk 0:01:47.4]} 13. Bg2 {[%clk 0:01:17.7]} 13... Nc5 {[%clk
0:01:46.1]} 14. Nd5 {[%clk 0:01:07.4]} 14... Bxd5 {[%clk 0:01:34]} 15. cxd5
{[%clk 0:01:07.4]} 15... Nd4 {[%clk 0:01:18.2]} 16. b4 {[%clk 0:01:06.7]} 16...
Ncb3 {[%clk 0:01:15.5]} 17. Rd1 {[%clk 0:01:06.4]} 17... Rc8 {[%clk 0:01:04.9]}
18. Be4 {[%clk 0:01:06.1]} 18... f5 {[%clk 0:00:59.9]} 19. Bb1 {[%clk
0:01:05.8]} 19... g6 {[%clk 0:00:41.1]} 20. h4 {[%clk 0:01:01.1]} 20... Bg7
{[%clk 0:00:39.8]} 21. h5 {[%clk 0:01:01]} 21... h6 {[%clk 0:00:39.6]} 22. Be3
{[%clk 0:01:00]} 22... g5 {[%clk 0:00:36.5]} 23. Kf1 {[%clk 0:00:58.1]} 23...
O-O {[%clk 0:00:35.4]} 24. Bxd4 {[%clk 0:00:53.4]} 24... Nxd4 {[%clk 0:00:34.8]}
25. e3 {[%clk 0:00:52.4]} 25... Nf3 {[%clk 0:00:30.1]} 26. Ba2 {[%clk
0:00:48.2]} 26... b5 {[%clk 0:00:26.9]} 27. Ke2 {[%clk 0:00:40.2]} 27... e4
{[%clk 0:00:26.7]} 28. Rb1 {[%clk 0:00:33.1]} 28... Rc7 {[%clk 0:00:26.8]} 29.
Bb3 {[%clk 0:00:32.9]} 29... Rfc8 {[%clk 0:00:26.3]} 30. Rhd1 {[%clk 0:00:33.4]}
30... g4 {[%clk 0:00:26]} 31. Rh1 {[%clk 0:00:29]} 31... Be5 {[%clk 0:00:25.9]}
32. Rhd1 {[%clk 0:00:28.2]} 32... Kg7 {[%clk 0:00:26.4]} 33. Kf1 {[%clk
0:00:28.3]} 33... Kf6 {[%clk 0:00:25.5]} 34. Kg2 {[%clk 0:00:28.3]} 34... Kg5
{[%clk 0:00:26.1]} 35. Kf1 {[%clk 0:00:19.4]} 35... Kxh5 {[%clk 0:00:25.6]} 36.
Ke2 {[%clk 0:00:20.1]} 36... Kg5 {[%clk 0:00:26.1]} 37. Ba2 {[%clk 0:00:18.8]}
37... h5 {[%clk 0:00:24.3]} 38. Kf1 {[%clk 0:00:18.2]} 38... h4 {[%clk
0:00:24.3]} 39. gxh4+ {[%clk 0:00:17.7]} 39... Kxh4 {[%clk 0:00:23.9]} 40. Ke2
{[%clk 0:00:18.1]} 40... Kg5 {[%clk 0:00:24.3]} 41. Bb3 {[%clk 0:00:17.9]} 41...
Rh7 {[%clk 0:00:22.1]} 42. Rh1 {[%clk 0:00:17.7]} 42... Rch8 {[%clk 0:00:20.5]}
43. Rxh7 {[%clk 0:00:16.5]} 43... Rxh7 {[%clk 0:00:21.4]} 44. Bc2 {[%clk
0:00:12.2]} 44... Rh2 {[%clk 0:00:21.3]} 45. Rf1 {[%clk 0:00:12.7]} 45... g3
{[%clk 0:00:21.7]} 0-1

[Event "*** Titled Tuesday Blitz"]
[Site "Chess.com"]
[Date "2020.05.19"]
[Round "7"]
[White "Aikiigm"]
[Black "A-Fier"]
[Result "1/2-1/2"]
[WhiteElo "2544"]
[BlackElo "2734"]
[TimeControl "180+1"]
[EndTime "13:20:48 PDT"]
[Termination "Game drawn by repetition"]

1. d4 {[%clk 0:02:57.4]} 1... Nf6 {[%clk 0:02:59.4]} 2. Nf3 {[%clk 0:02:53.5]}
2... e6 {[%clk 0:02:57.7]} 3. a4 {[%clk 0:02:53.5]} 3... c5 {[%clk 0:02:45.8]}
4. e3 {[%clk 0:02:53.1]} 4... Nc6 {[%clk 0:02:45.3]} 5. c3 {[%clk 0:02:53.2]}
5... d5 {[%clk 0:02:44.7]} 6. Bd3 {[%clk 0:02:50.6]} 6... Bd6 {[%clk 0:02:43.7]}
7. Nbd2 {[%clk 0:02:50.6]} 7... O-O {[%clk 0:02:43.7]} 8. O-O {[%clk 0:02:50.2]}
8... e5 {[%clk 0:02:44.1]} 9. dxe5 {[%clk 0:02:49.5]} 9... Nxe5 {[%clk 0:02:45]}
10. Nxe5 {[%clk 0:02:49.7]} 10... Bxe5 {[%clk 0:02:45.9]} 11. Nf3 {[%clk
0:02:50.2]} 11... Bc7 {[%clk 0:02:45.9]} 12. h3 {[%clk 0:02:47.7]} 12... Qd6
{[%clk 0:02:42.9]} 13. b4 {[%clk 0:02:46.3]} 13... c4 {[%clk 0:02:40.1]} 14. Bc2
{[%clk 0:02:44.3]} 14... Re8 {[%clk 0:02:40.2]} 15. b5 {[%clk 0:02:42]} 15...
Ne4 {[%clk 0:02:26.8]} 16. Bxe4 {[%clk 0:02:34.5]} 16... Rxe4 {[%clk 0:02:26.8]}
17. Ba3 {[%clk 0:02:29.2]} 17... Qg6 {[%clk 0:02:26]} 18. Kh1 {[%clk 0:02:22.4]}
18... Bxh3 {[%clk 0:02:20.7]} 19. gxh3 {[%clk 0:02:13.2]} 19... Qf5 {[%clk
0:02:16.6]} 20. Ng1 {[%clk 0:02:07.8]} 20... Rae8 {[%clk 0:02:16.7]} 21. Qf3
{[%clk 0:02:04.3]} 21... Qe5 {[%clk 0:02:15.4]} 22. Qg3 {[%clk 0:02:01.2]} 22...
Qxg3 {[%clk 0:02:15.6]} 23. fxg3 {[%clk 0:02:01]} 23... Rxe3 {[%clk 0:02:16.5]}
24. Rad1 {[%clk 0:01:57.2]} 24... Rxc3 {[%clk 0:02:16.1]} 25. Bc5 {[%clk
0:01:51.5]} 25... b6 {[%clk 0:02:13.8]} 26. Bf2 {[%clk 0:01:50.5]} 26... Rd8
{[%clk 0:02:09.7]} 27. Ne2 {[%clk 0:01:49.2]} 27... Ra3 {[%clk 0:02:08.2]} 28.
Nd4 {[%clk 0:01:49.1]} 28... Bxg3 {[%clk 0:02:02.6]} 29. Nc6 {[%clk 0:01:40.3]}
29... Re8 {[%clk 0:02:02.8]} 30. Rxd5 {[%clk 0:01:33.7]} 30... Bxf2 {[%clk
0:01:59.8]} 31. Rxf2 {[%clk 0:01:33.8]} 31... Rxh3+ {[%clk 0:02:00.4]} 32. Kg2
{[%clk 0:01:33.8]} 32... Rhe3 {[%clk 0:01:39.8]} 33. Rd7 {[%clk 0:01:33.3]}
33... f6 {[%clk 0:01:40.2]} 34. Rxa7 {[%clk 0:01:28.3]} 34... c3 {[%clk
0:01:40.6]} 35. Rc7 {[%clk 0:01:28.1]} 35... h5 {[%clk 0:01:37.8]} 36. Nd4
{[%clk 0:01:27]} 36... R3e7 {[%clk 0:01:21.8]} 37. Rxc3 {[%clk 0:01:24.3]} 37...
Re4 {[%clk 0:01:19.6]} 38. Nf5 {[%clk 0:01:17.7]} 38... Rxa4 {[%clk 0:01:19.3]}
39. Rg3 {[%clk 0:01:15]} 39... g5 {[%clk 0:01:18.8]} 40. Rc3 {[%clk 0:01:10.6]}
40... Ra7 {[%clk 0:01:10.2]} 41. Rc6 {[%clk 0:01:08.8]} 41... Rf8 {[%clk
0:01:09.7]} 42. Rxb6 {[%clk 0:01:08.8]} 42... Kh7 {[%clk 0:01:10.1]} 43. Rc6
{[%clk 0:01:07]} 43... Kg6 {[%clk 0:01:10.4]} 44. b6 {[%clk 0:01:05.5]} 44...
Rb7 {[%clk 0:01:09.6]} 45. Nd6 {[%clk 0:01:05.3]} 45... Rd7 {[%clk 0:01:06]} 46.
b7 {[%clk 0:01:03.8]} 46... Rb8 {[%clk 0:01:02.7]} 47. Rb6 {[%clk 0:00:52.4]}
47... h4 {[%clk 0:00:59.4]} 48. Rc2 {[%clk 0:00:43.7]} 48... g4 {[%clk 0:00:55]}
49. Rc8 {[%clk 0:00:42.1]} 49... Rbxb7 {[%clk 0:00:51.8]} 50. Nxb7 {[%clk
0:00:39.1]} 50... Rd2+ {[%clk 0:00:52.4]} 51. Kf1 {[%clk 0:00:38.1]} 51... h3
{[%clk 0:00:52.5]} 52. Rg8+ {[%clk 0:00:36.6]} 52... Kf5 {[%clk 0:00:52.9]} 53.
Nd6+ {[%clk 0:00:35.8]} 53... Kf4 {[%clk 0:00:51.1]} 54. Rb4+ {[%clk 0:00:35.5]}
54... Kf3 {[%clk 0:00:51.6]} 55. Rb3+ {[%clk 0:00:27.5]} 55... Kf4 {[%clk
0:00:50.8]} 56. Rb4+ {[%clk 0:00:24.8]} 56... Kf3 {[%clk 0:00:50.9]} 57. Rb3+
{[%clk 0:00:20.3]} 57... Kf4 {[%clk 0:00:50.9]} 58. Ke1 {[%clk 0:00:19.6]} 58...
Rg2 {[%clk 0:00:50.2]} 59. Rb4+ {[%clk 0:00:16.7]} 59... Kf3 {[%clk 0:00:49.7]}
60. Rb3+ {[%clk 0:00:16.3]} 60... Kf4 {[%clk 0:00:50.2]} 61. Rb4+ {[%clk
0:00:16.5]} 61... Kf3 {[%clk 0:00:50.7]} 62. Rb3+ {[%clk 0:00:14.4]} 62... Kf4
{[%clk 0:00:50.8]} 1/2-1/2

[Event "*** Titled Tuesday Blitz"]
[Site "Chess.com"]
[Date "2020.05.19"]
[Round "7"]
[White "lelya96"]
[Black "aa175"]
[Result "0-1"]
[WhiteElo "2255"]
[BlackElo "2424"]
[TimeControl "180+1"]
[EndTime "13:20:48 PDT"]
[Termination "aa175 won by checkmate"]

1. e4 {[%clk 0:03:00.9]} 1... c5 {[%clk 0:02:57.4]} 2. Nf3 {[%clk 0:03:00.5]}
2... d6 {[%clk 0:02:56]} 3. c3 {[%clk 0:02:53.5]} 3... Nf6 {[%clk 0:02:55.4]} 4.
Bd3 {[%clk 0:02:51.9]} 4... Nc6 {[%clk 0:02:54.4]} 5. O-O {[%clk 0:02:51.4]}
5... Bg4 {[%clk 0:02:51.6]} 6. h3 {[%clk 0:02:49.9]} 6... Bxf3 {[%clk
0:02:51.1]} 7. Qxf3 {[%clk 0:02:49.5]} 7... g6 {[%clk 0:02:46.9]} 8. Bc2 {[%clk
0:02:48.1]} 8... Bg7 {[%clk 0:02:46.9]} 9. Rd1 {[%clk 0:02:42.6]} 9... Nd7
{[%clk 0:02:45.1]} 10. d3 {[%clk 0:02:36.6]} 10... O-O {[%clk 0:02:43.6]} 11.
Nd2 {[%clk 0:02:31.9]} 11... Re8 {[%clk 0:02:39.7]} 12. g4 {[%clk 0:02:27.6]}
12... Nf8 {[%clk 0:02:33]} 13. Qg2 {[%clk 0:02:27.3]} 13... e5 {[%clk
0:02:31.1]} 14. Nc4 {[%clk 0:02:21.4]} 14... Ne6 {[%clk 0:02:29.4]} 15. a4
{[%clk 0:02:17.6]} 15... a6 {[%clk 0:02:25.1]} 16. Be3 {[%clk 0:02:05.5]} 16...
Rb8 {[%clk 0:02:19.4]} 17. a5 {[%clk 0:02:04.2]} 17... Nf4 {[%clk 0:02:13.7]}
18. Bxf4 {[%clk 0:02:01.9]} 18... exf4 {[%clk 0:02:14.6]} 19. Qf3 {[%clk
0:01:57]} 19... g5 {[%clk 0:02:12.6]} 20. Ba4 {[%clk 0:01:47.3]} 20... Qc7
{[%clk 0:02:03.3]} 21. Nb6 {[%clk 0:01:28.9]} 21... Re5 {[%clk 0:01:49.1]} 22.
Nd5 {[%clk 0:01:24.9]} 22... Rxd5 {[%clk 0:01:44.9]} 23. exd5 {[%clk 0:01:22.1]}
23... Ne5 {[%clk 0:01:45.8]} 24. Qe4 {[%clk 0:01:19.2]} 24... Qxa5 {[%clk
0:01:40.8]} 25. d4 {[%clk 0:01:14.5]} 25... Nc4 {[%clk 0:01:36.5]} 26. Bc2
{[%clk 0:01:13.2]} 26... Qb6 {[%clk 0:01:31.7]} 27. Qxh7+ {[%clk 0:01:05.8]}
27... Kf8 {[%clk 0:01:28.8]} 28. b3 {[%clk 0:01:01.8]} 28... Nb2 {[%clk
0:01:24.6]} 29. Rab1 {[%clk 0:00:45.8]} 29... Nxd1 {[%clk 0:01:22.2]} 30. Rxd1
{[%clk 0:00:43.5]} 30... cxd4 {[%clk 0:01:22.4]} 31. c4 {[%clk 0:00:42.7]} 31...
Re8 {[%clk 0:01:18.4]} 32. Qf5 {[%clk 0:00:41.2]} 32... Re5 {[%clk 0:01:11.4]}
33. Qc8+ {[%clk 0:00:37.1]} 33... Re8 {[%clk 0:01:09]} 34. Qd7 {[%clk
0:00:29.9]} 34... Re2 {[%clk 0:00:47.9]} 35. Qc8+ {[%clk 0:00:29.1]} 35... Ke7
{[%clk 0:00:45.7]} 36. Bd3 {[%clk 0:00:28]} 36... f3 {[%clk 0:00:40.7]} 37. Qf5
{[%clk 0:00:26.6]} 37... Qxb3 {[%clk 0:00:34.6]} 38. Qxg5+ {[%clk 0:00:25.5]}
38... Bf6 {[%clk 0:00:33.8]} 39. Qc1 {[%clk 0:00:22.2]} 39... Bh4 {[%clk
0:00:25.6]} 40. Bxe2 {[%clk 0:00:21.6]} 40... fxe2 {[%clk 0:00:26]} 41. Re1
{[%clk 0:00:14.8]} 41... Qf3 {[%clk 0:00:22.3]} 42. Qd2 {[%clk 0:00:14.7]} 42...
Bxf2+ {[%clk 0:00:01.1]} 43. Kh2 {[%clk 0:00:13.3]} 43... Qg3+ {[%clk 0:00:02]}
44. Kh1 {[%clk 0:00:12.2]} 44... Qxh3# {[%clk 0:00:01.7]} 0-1